fUSD/lending_fUSD_20250212
["ID","MTS","AMOUNT","RATE_DAILY","PERIOD"]
[352815784,1739344232417,-150.0,0.00012274,2]
[352815785,1739344232427,-438.77,0.00012274,2]
[352815786,1739344232438,-150.0,0.00012274,2]
[352815787,1739344232447,-150.0,0.00012274,2]
[352815788,1739344232457,-150.0,0.00012274,2]
[352815790,1739344232467,-492.18398919,0.00012274,2]
[352815793,1739344232478,-363.36010393,0.00012274,2]
[352815795,1739344232490,-130.38590688,0.00012274,2]
[352815797,1739344232502,-416.52716057,0.00012274,2]
[352815802,1739344232539,-22.35283943,0.00012274,2]
[352815803,1739344232549,-150.0,0.00012274,2]
[352815804,1739344232559,-150.0,0.00012274,2]
[352815805,1739344232570,-150.0,0.00012274,2]
[352815807,1739344232579,-438.88,0.00012274,2]
[352815809,1739344232589,-150.0,0.00012274,2]
[352815811,1739344232598,-985.93,0.00012274,2]
[352815814,1739344232608,-150.0,0.00012274,2]
[352815817,1739344232618,-438.88,0.00012274,2]
[352815820,1739344232628,-150.0,0.00012274,2]
[352815823,1739344232637,-150.0,0.00012274,2]
[352815825,1739344232647,-150.0,0.00012274,2]
[352815829,1739344232657,-985.93,0.00012274,2]
[352815831,1739344232667,-150.0,0.00012274,2]
[352815833,1739344232676,-150.0,0.00012274,2]
[352815835,1739344232687,-150.0,0.00012274,2]
[352815837,1739344232696,-985.93,0.00012278,2]
[352815839,1739344232706,-150.0,0.00012278,2]
[352815840,1739344232715,-154.59,0.00012278,2]
[352815841,1739344232725,-509.93,0.00012424,2]
[352815842,1739344232735,-250.0,0.00012522,2]
[352815843,1739344232744,-745.06772672,0.0001265,2]
[352815844,1739344232757,-2500.0,0.000127,2]
[352815845,1739344232767,-2500.0,0.000127,2]
[352815846,1739344232777,-189.60861035,0.000127,2]
[352815847,1739344232787,-6236.63815951,0.000127,2]
[352815849,1739344237843,-1456.17440791,0.000127,2]
[352815850,1739344237957,-419.82704776,0.000127,2]
[352815851,1739344238071,-1152.81994202,0.000127,2]
[352816034,1739344239884,-1600.0,0.000127,2]
[352816048,1739344240015,-561.988505,0.000127,2]
[352816062,1739344240148,-1197.75670368,0.000127,2]
[352816082,1739344240350,-391.6254437,0.000127,2]
[352816083,1739344240376,-385.95255073,0.000127,2]
[352816084,1739344240389,-997.65756837,0.000127,2]
[352816085,1739344240402,-5823.12374433,0.000127,2]
[352816086,1739344240416,-1028.48050301,0.000127,2]
[352816357,1739344243158,-28025.56056173,0.000127,2]
[352816669,1739344246151,-9665.60904791,0.000127,2]
[352816672,1739344246163,-2598.32966605,0.000127,2]
[352816674,1739344246175,-5305.73805395,0.000127,2]
[352816680,1739344246258,-2996.30977758,0.000127,2]
[352817137,1739345218928,899.28537405,0.00020548,120]
[352817369,1739345432107,-851.49,9.711e-05,2]
[352817370,1739345432117,-300.0,9.999e-05,2]
[352817371,1739345432127,-150.0,9.999e-05,2]
[352817373,1739345432136,-275.87276331,9.999e-05,2]
[352817375,1739345432148,-224.12723669,9.999e-05,2]
[352817377,1739345432158,-500.0,9.999e-05,2]
[352817378,1739345432168,-269.52928681,9.999e-05,2]
[352817380,1739345432187,-350.47071319,9.999e-05,2]
[352817381,1739345432197,-352.21901331,0.0001,2]
[352817382,1739345432208,-13894.87632312,0.0001,2]
[352817383,1739345432468,-3589.2408798,0.0001,2]
[352817929,1739345438027,-1589.07529685,0.0001,2]
[352817933,1739345438054,-33996.95258189,0.0001,2]
[352817935,1739345438066,-833.69583873,0.0001,2]
[352817938,1739345438083,-1520.6853254,0.0001,2]
[352817942,1739345438112,-7247.34010062,0.0001,2]
[352817946,1739345438145,-2731.46557672,0.0001,2]
[352817960,1739345438264,-1170.48630001,0.0001,2]
[352817963,1739345438276,-1471.09,0.0001,2]
[352817965,1739345438288,-351.0,0.0001,2]
[352817968,1739345438305,-782.895,0.0001,2]
[352817970,1739345438316,-414.04008287,0.0001,2]
[352818139,1739345440190,-50000.0,0.0001,2]
[352818153,1739345440318,-66550.20253129,0.0001,2]
[352818155,1739345440329,-331.07,0.0001,2]
[352818158,1739345440340,-28019.2140588,0.0001,2]
[352818168,1739345440432,-401.44214624,0.0001,2]
[352818173,1739345440465,-249482.96777301,0.0001,2]
[352818177,1739345440498,-1142.73454125,0.0001,2]
[352818179,1739345440509,-800.66390611,0.0001,2]
[352818190,1739345440610,-527.55520127,0.0001,2]
[352818443,1739345443132,-1182.94805861,0.0001,2]
[352818445,1739345443144,-3953.81927455,0.0001,2]
[352818451,1739345443191,-9518.59284828,0.0001,2]
[352818458,1739345443251,-362.0517599,0.0001,2]
[352818461,1739345443264,-1715.49229502,0.0001,2]
[352818464,1739345443282,-4836.0,0.0001,2]
[352818466,1739345443298,-699.5899999,0.0001,2]
[352818469,1739345443310,-424.49932413,0.0001,2]
[352818471,1739345443321,-6397.3587318,0.0001,2]
[352818473,1739345443332,-836.6104892,0.0001,2]
[352818477,1739345443364,-707404.66286465,0.0001,2]
[352818479,1739345443373,-207978.72147022,0.0001,2]
[352818482,1739345443385,-78616.59854648,0.0001,2]
[352818484,1739345443396,-577.84974453,0.0001,2]
[352818486,1739345443407,-29571.19236403,0.0001,2]
[352818488,1739345443422,-1776.20347505,0.0001,2]
[352818490,1739345443434,-559.25140233,0.0001,2]
[352818582,1739345446286,-270.32830976,0.0001,2]
[352818583,1739345446307,-987.17048649,0.0001,2]
[352818584,1739345446322,-557.8888871,0.0001,2]
[352818585,1739345446337,-466.04135933,0.0001,2]
[352818586,1739345446352,-343.21999969,0.0001,2]
[352818587,1739345446368,-2629.4481019,0.0001,2]
[352818588,1739345446398,-5829.53842586,0.0001,2]
[352818589,1739345446482,-2354.84966965,0.0001,2]
[352818590,1739345446499,-538.7373947,0.0001,2]
[352818591,1739345446514,-5163.45991679,0.0001,2]
[352818603,1739345459914,902.4806,8.699e-05,2]
[352818604,1739345472042,1567.3164,8.699e-05,2]
[352818610,1739345725089,15130.203,8.836e-05,2]
[352818611,1739345725117,44607.4108,8.836e-05,2]
[352818620,1739346089949,867.99,8.556e-05,2]
[352819082,1739346632398,-387.645,9.8e-05,2]
[352819083,1739346632538,-3690.555,9.8e-05,2]
[352819084,1739346632550,-217.537,9.8e-05,2]
[352819085,1739346632560,-218.66291748,9.8e-05,2]
[352819086,1739346632571,-218.66291747,9.9e-05,2]
[352819087,1739346632582,-150.0,9.999e-05,2]
[352819088,1739346632592,-234.02357902,9.999e-05,2]
[352819089,1739346632603,-370.55858603,0.0001,2]
[352819090,1739346632615,-475.49962009,0.0001,2]
[352819091,1739346632627,-955.4558368,0.0001,2]
[352819092,1739346632639,-1958.84862141,0.0001,2]
[352819093,1739346632652,-1850.45,0.0001,2]
[352819094,1739346632664,-960.850298,0.0001,2]
[352819095,1739346632676,-406.88,0.0001,2]
[352819096,1739346632688,-815.2855,0.0001,2]
[352819097,1739346632699,-1955.82951647,0.0001,2]
[352819098,1739346632718,-990.30167992,0.0001,2]
[352819099,1739346632730,-815.46,0.0001,2]
[352819100,1739346632742,-25752.55502778,0.0001,2]
[352819101,1739346632758,-441.8195727,0.0001,2]
[352819102,1739346632770,-480.50358586,0.0001,2]
[352819103,1739346632782,-1243.56644107,0.0001,2]
[352819305,1739346640675,-348.34500001,0.0001,2]
[352819310,1739346640819,-973.19498958,0.0001,2]
[352819594,1739346643544,-960.15,0.0001,2]
[352819873,1739346646342,-2766.35964096,0.0001,2]
[352819875,1739346646354,-707.49192165,0.0001,2]
[352819879,1739346646384,-491.90865646,0.0001,2]
[352819885,1739346646438,-767231.25334356,0.0001,2]
[352819918,1739346646739,-833.49838137,0.0001,2]
[352821995,1739347176137,-3262.56,9.8e-05,2]
[352821996,1739347176160,-150.0,9.999e-05,2]
[352821997,1739347176182,-6587.44,0.0001,2]
[352821998,1739347177744,-10000.0,0.0001,2]
[352821999,1739347179619,-10000.0,0.0001,2]
[352822000,1739347180018,-10000.0,0.0001,2]
[352822001,1739347180404,-10000.0,0.0001,2]
[352822002,1739347180916,-10000.0,0.0001,2]
[352822003,1739347182801,-10000.0,0.0001,2]
[352822004,1739347184080,-10000.0,0.0001,2]
[352822005,1739347185477,-10000.0,0.0001,2]
[352822006,1739347190606,-6134.0,0.0001,2]
[352822007,1739347226306,885.56,8.219e-05,2]
[352822008,1739347231210,150.0,0.00019122,120]
[352822009,1739347290735,150.0,0.00018525,120]
[352822010,1739347350732,150.0,0.00019974,120]
[352822011,1739347410755,150.0,0.00019945,120]
[352822012,1739347531540,150.0,0.00019291,120]
[352822065,1739347832420,-1852.75757672,8.973e-05,2]
[352822066,1739347832525,-458.27472038,8.973e-05,2]
[352822067,1739347832580,-175.3961029,8.973e-05,2]
[352822068,1739347832589,-254.96,9.803e-05,2]
[352822069,1739347832600,-270.69,9.807e-05,2]
[352822070,1739347832609,-204.27244049,9.857e-05,2]
[352822071,1739347832619,-1500.0,9.857e-05,2]
[352822072,1739347832629,-788.69886877,9.857e-05,2]
[352822073,1739347832640,-690.22670659,9.999e-05,2]
[352822074,1739347832649,-150.0,9.999e-05,2]
[352822075,1739347832660,-500.0,9.999e-05,2]
[352822076,1739347832669,-615.15184046,9.999e-05,2]
[352822077,1739347832679,-5396.43286915,0.0001,2]
[352822078,1739347832690,-492.18846894,0.0001,2]
[352822079,1739347832726,-163538.2133827,0.0001,2]
[352822080,1739347832737,-1842.82074556,0.0001,2]
[352822081,1739347832752,-6858.11034324,0.0001,2]
[352822082,1739347832794,-722.54233573,0.0001,2]
[352822083,1739347832806,-3590.42,0.0001,2]
[352822605,1739347838266,-166.84,9.813e-05,2]
[352822607,1739347838276,-166.84,9.837e-05,2]
[352822609,1739347838286,-166.84,9.862e-05,2]
[352822611,1739347838296,-621.38733346,0.0001,2]
[352822614,1739347838309,-10799.30148459,0.0001,2]
[352822632,1739347838477,-31344.0,0.0001,2]
[352822634,1739347838488,-1014.55504234,0.0001,2]
[352822637,1739347838500,-114478.73302573,0.0001,2]
[352822641,1739347838532,-4268.74076009,0.0001,2]
[352822823,1739347840566,-35937.195092,0.0001,2]
[352822837,1739347840890,-1.96029656,0.0001,2]
[352822842,1739347840923,-12060.52463576,0.0001,2]
[352822844,1739347840935,-3476.04207273,0.0001,2]
[352822846,1739347840947,-624.79062538,0.0001,2]
[352822849,1739347840960,-974.36,0.0001,2]
[352823418,1739347846426,-6793.18697875,0.0001,2]
[352823424,1739347846480,-2118.55432115,0.0001,2]
[352823754,1739348244993,1178.37621637,8e-05,2]
[352823755,1739348528864,80000.0,0.0002,120]
[352823756,1739348548205,40297.90891592,0.0002,120]
[352823759,1739348782011,900.76,8.219e-05,2]
[352823804,1739349031615,-273.36,9.307e-05,2]
[352823805,1739349031626,-273.36,9.31e-05,2]
[352823806,1739349031636,-147.36539983,9.312e-05,2]
[352823807,1739349031722,-125.99460017,9.312e-05,2]
[352823808,1739349031733,-145.84800565,9.314e-05,2]
[352823809,1739349031831,-127.51199435,9.314e-05,2]
[352823810,1739349031841,-273.36,9.317e-05,2]
[352823811,1739349031851,-273.36,9.319e-05,2]
[352823812,1739349031860,-273.36,9.322e-05,2]
[352823813,1739349031870,-273.36,9.324e-05,2]
[352823814,1739349031879,-273.36,9.327e-05,2]
[352823815,1739349031889,-273.36,9.329e-05,2]
[352823816,1739349031898,-273.36,9.332e-05,2]
[352823817,1739349031907,-273.36,9.334e-05,2]
[352823818,1739349031918,-254.96,9.336e-05,2]
[352823819,1739349031929,-273.36,9.336e-05,2]
[352823820,1739349031940,-273.36,9.339e-05,2]
[352823821,1739349031951,-273.36,9.341e-05,2]
[352823822,1739349031960,-273.36,9.344e-05,2]
[352823823,1739349031969,-273.36,9.346e-05,2]
[352823824,1739349031979,-273.36,9.349e-05,2]
[352823825,1739349031988,-273.36,9.351e-05,2]
[352823826,1739349031997,-273.36,9.354e-05,2]
[352823827,1739349032007,-1500.0,9.389e-05,2]
[352823828,1739349032016,-157.2,9.414e-05,2]
[352823829,1739349032026,-204.27244048,9.825e-05,2]
[352823830,1739349032036,-250.0,9.825e-05,2]
[352823831,1739349032046,-500.0,9.845e-05,2]
[352823832,1739349032057,-21096.85251777,9.863e-05,2]
[352823937,1739349037623,-1008.99495766,9.863e-05,2]
[352823941,1739349039624,-396.68910001,9.863e-05,2]
[352823942,1739349039942,-1397.46342456,9.863e-05,2]
[352823943,1739349039952,-48.71657544,9.871e-05,2]
[352823944,1739349039964,-951.28342456,9.871e-05,2]
[352823945,1739349039973,-233.16,9.88e-05,2]
[352823946,1739349039983,-137.05004257,9.88e-05,2]
[352823954,1739349042567,-165.50995743,9.88e-05,2]
[352823955,1739349042577,-1003.37,9.88e-05,2]
[352823956,1739349042587,-1483.05718709,9.919e-05,2]
[352823957,1739349042675,-1678.08281291,9.919e-05,2]
[352823958,1739349042686,-297.0,9.973e-05,2]
[352823959,1739349042698,-150.0,9.992e-05,2]
[352823960,1739349042707,-817.90537136,9.993e-05,2]
[352823961,1739349042716,-211.78331497,9.993e-05,2]
[352823998,1739349045780,-37.64735873,9.993e-05,2]
[352823999,1739349045792,-1594.20524721,9.993e-05,2]
[352824000,1739349045819,-1320.40000001,9.993e-05,2]
[352824006,1739349827137,915.25,8.219e-05,2]
[352824024,1739350231774,-250.0,9.362e-05,2]
[352824025,1739350231785,-216.55,9.708e-05,2]
[352824026,1739350231794,-500.0,9.71e-05,2]
[352824027,1739350231804,-2853.296,9.8e-05,2]
[352824028,1739350231814,-143.194,9.816e-05,2]
[352824029,1739350231826,-2400.0,9.816e-05,2]
[352824030,1739350231935,-745.316,9.816e-05,2]
[352824031,1739350231946,-1393.91880222,9.816e-05,2]
[352824032,1739350232040,-2813.51741713,9.816e-05,2]
[352824033,1739350232053,-1000.0,9.816e-05,2]
[352824034,1739350232066,-550.99707701,9.816e-05,2]
[352824035,1739350232146,-25247.73936006,9.816e-05,2]
[352824036,1739350232157,-1000.0,9.857e-05,2]
[352824037,1739350232168,-165.31,9.868e-05,2]
[352824038,1739350232178,-500.0,9.973e-05,2]
[352824039,1739350232190,-1053.7,9.98e-05,2]
[352824040,1739350232199,-4694.10387135,9.98e-05,2]
[352824041,1739350232210,-150.0,9.991e-05,2]
[352824042,1739350232222,-8599.6400692,9.992e-05,2]
[352824043,1739350232232,-4149.7897263,9.992e-05,2]
[352824044,1739350232243,-1455.2824531,9.992e-05,2]
[352824046,1739350232253,-180.0,9.999e-05,2]
[352824047,1739350232264,-213.60257561,9.999e-05,2]
[352824049,1739350232274,-500.0,9.999e-05,2]
[352824051,1739350232284,-500.0,9.999e-05,2]
[352824053,1739350232293,-500.0,9.999e-05,2]
[352824054,1739350232303,-500.0,9.999e-05,2]
[352824056,1739350232312,-500.0,9.999e-05,2]
[352824058,1739350232322,-500.0,9.999e-05,2]
[352824060,1739350232332,-500.0,9.999e-05,2]
[352824063,1739350232342,-500.0,9.999e-05,2]
[352824065,1739350232352,-500.0,9.999e-05,2]
[352824067,1739350232362,-500.0,9.999e-05,2]
[352824069,1739350232372,-531.87098744,9.999e-05,2]
[352824071,1739350232382,-500.0,9.999e-05,2]
[352824073,1739350232392,-500.0,9.999e-05,2]
[352824075,1739350232401,-200.0,9.999e-05,2]
[352824077,1739350232411,-49237.39144042,0.0001,2]
[352824080,1739350232422,-432013.13856786,0.0001,2]
[352824083,1739350232431,-119330.72142281,0.0001,2]
[352824086,1739350232441,-214.64059472,0.0001,2]
[352824089,1739350232451,-2621.78360136,0.0001,2]
[352824092,1739350232461,-64305.68004568,0.0001,2]
[352824095,1739350232470,-151.20741167,0.0001,2]
[352824099,1739350232481,-198.095966,0.0001,2]
[352824101,1739350232491,-300.0,0.0001,2]
[352824104,1739350232501,-439.79,0.0001,2]
[352824109,1739350232511,-1136.14,0.0001,2]
[352824112,1739350232522,-151.0,0.0001,2]
[352824115,1739350232532,-775.92914,0.0001,2]
[352824118,1739350232541,-317.41756786,0.0001,2]
[352824121,1739350232551,-151.46,0.00010137,2]
[352824124,1739350232561,-275.6,0.00010137,2]
[352824127,1739350232571,-33318.32407469,0.0001016,2]
[352824130,1739350232580,-774.96,0.000103,2]
[352824133,1739350232590,-150.0,0.00010332,2]
[352824136,1739350232601,-150.00000001,0.00010332,2]
[352824138,1739350232611,-915.25,0.00010444,2]
[352824140,1739350232620,-150.0,0.00010446,2]
[352824142,1739350232632,-151.18,0.00010475,2]
[352824144,1739350232642,-151.18,0.00010479,2]
[352824146,1739350232652,-151.18,0.00010483,2]
[352824148,1739350232661,-151.18,0.00010487,2]
[352824150,1739350232672,-151.18,0.00010491,2]
[352824153,1739350232682,-151.18,0.00010495,2]
[352824155,1739350232692,-151.18,0.00010499,2]
[352824157,1739350232702,-151.18,0.00010503,2]
[352824159,1739350232711,-151.18,0.00010507,2]
[352824161,1739350232721,-151.18,0.00010511,2]
[352824163,1739350232731,-151.18,0.00010515,2]
[352824165,1739350232741,-151.18,0.00010519,2]
[352824167,1739350232751,-151.18,0.00010523,2]
[352824169,1739350232760,-151.18,0.00010527,2]
[352824171,1739350232770,-567.00777344,0.00010546,2]
[352824173,1739350232779,-150.0,0.00010561,2]
[352824175,1739350232789,-500.0,0.00010584,2]
[352824177,1739350232799,-500.0,0.00010584,2]
[352824179,1739350232808,-500.0,0.00010584,2]
[352824181,1739350232817,-500.0,0.00010584,2]
[352824183,1739350232826,-500.0,0.00010584,2]
[352824185,1739350232836,-500.0,0.00010584,2]
[352824187,1739350232846,-641.60300424,0.00010584,2]
[352824189,1739350232855,-157.2,0.00010591,2]
[352824191,1739350232865,-500.0,0.0001065,2]
[352824193,1739350232875,-263.70569853,0.0001066,2]
[352824195,1739350232885,-150.0,0.00010676,2]
[352824197,1739350232895,-257.25191489,0.000107,2]
[352824199,1739350232904,-846.21496033,0.00010781,7]
[352824201,1739350232914,-201.74199792,0.00010786,2]
[352824203,1739350232924,-150.0,0.00010791,2]
[352824205,1739350232935,-770.92511401,0.000108,2]
[352824207,1739350232945,-266.49224569,0.000109,2]
[352824209,1739350232954,-170.88025095,0.000109,2]
[352824211,1739350232963,-150.0,0.00010905,2]
[352824214,1739350232973,-2500.0,0.00010912,2]
[352824216,1739350232983,-216.55,0.00010921,2]
[352824218,1739350232993,-255.0,0.0001099,2]
[352824220,1739350233003,-5541.0,0.00011,2]
[352824222,1739350233012,-150.0,0.0001102,2]
[352824224,1739350233022,-1000.0,0.00011089,2]
[352824226,1739350233031,-152.5723494,0.00011099,2]
[352824228,1739350233041,-152.57234938,0.00011099,2]
[352824230,1739350233051,-152.57234938,0.00011099,2]
[352824232,1739350233060,-152.57234938,0.00011099,2]
[352824233,1739350233070,-152.57234938,0.00011099,2]
[352824234,1739350233079,-152.57234938,0.00011099,2]
[352824235,1739350233089,-152.57234938,0.00011099,2]
[352824236,1739350233099,-150.0,0.00011135,2]
[352824237,1739350233108,-500.0,0.00011198,2]
[352824238,1739350233119,-150.0,0.0001125,2]
[352824239,1739350233133,-501.0,0.0001126,2]
[352824240,1739350233144,-150.76,0.0001129,2]
[352824241,1739350233154,-203.33038598,0.0001129,2]
[352824242,1739350233165,-152.57234938,0.00011293,2]
[352824243,1739350233177,-95188.90897313,0.00011298,2]
[352824244,1739350233187,-151.0,0.00011298,2]
[352824245,1739350233197,-2520.0,0.000113,2]
[352824246,1739350233209,-40770.0,0.000113,2]
[352824247,1739350233219,-658996.62271553,0.000113,2]
[352824249,1739350233229,-193.061033,0.000113,2]
[352824251,1739350233240,-150.0,0.00011365,2]
[352824254,1739350233250,-2500.0,0.00011398,2]
[352824256,1739350233262,-500.0,0.000114,2]
[352824258,1739350233271,-369.22953037,0.000114,2]
[352824260,1739350233281,-438.88,0.00011442,2]
[352824262,1739350233291,-985.93,0.00011442,2]
[352824264,1739350233302,-438.88,0.00011442,2]
[352824266,1739350233312,-438.88,0.00011442,2]
[352824268,1739350233321,-985.93,0.00011442,2]
[352824270,1739350233332,-438.88,0.00011442,2]
[352824272,1739350233342,-985.93,0.00011442,2]
[352824274,1739350233352,-438.88,0.00011442,2]
[352824276,1739350233362,-985.93,0.00011442,2]
[352824278,1739350233372,-150.0,0.00011442,2]
[352824280,1739350233383,-265.42,0.00011442,2]
[352824282,1739350233393,-1917.34,0.00011442,2]
[352824284,1739350233403,-300.0,0.00011442,2]
[352824286,1739350233412,-471.61,0.00011442,2]
[352824288,1739350233422,-156.83594988,0.00011479,2]
[352824290,1739350233432,-150.76,0.0001149,2]
[352824292,1739350233442,-150.76,0.0001149,2]
[352824294,1739350233451,-150.76,0.0001149,2]
[352824296,1739350233461,-150.76,0.0001149,2]
[352824298,1739350233471,-150.76,0.0001149,2]
[352824300,1739350233481,-150.76,0.0001149,2]
[352824302,1739350233492,-150.76,0.0001149,2]
[352824304,1739350233502,-203.33038598,0.0001149,2]
[352824306,1739350233512,-152.57234938,0.00011492,2]
[352824308,1739350233522,-8159.8329057,0.00011492,2]
[352824310,1739350233532,-7720.0257422,0.00011492,2]
[352824313,1739350233542,-3937.5590708,0.00011492,2]
[352824315,1739350233552,-3725.3284154,0.00011492,2]
[352824317,1739350233562,-273.93710667,0.00011492,2]
[352824319,1739350233572,-1380.8556582,0.00011492,2]
[352824321,1739350233582,-1306.4288633,0.00011492,2]
[352824323,1739350233592,-500.0,0.00011499,2]
[352824325,1739350233601,-3082718.0643444,0.000115,2]
[352824327,1739350233616,-68502.65715522,0.000115,2]
[352824350,1739350237730,-759.53,0.00010959,2]
[352824351,1739350237740,-25627.06821995,0.000115,3]
[352824352,1739350237842,-11427.78538896,0.000115,3]
[352824353,1739350237855,-1418.52714052,0.000115,3]
[352824354,1739350237865,-626.99863006,0.000115,3]
[352824355,1739350237883,-7015.94967,0.000115,3]
[352824356,1739350237900,-921.42936603,0.000115,3]
[352824567,1739350242287,-2265.0,0.000113,2]
[352824568,1739350242298,-197735.0,0.000115,3]
[352824569,1739350242340,-862.7749996,0.000115,3]
[352824570,1739350242351,-518.72,0.000115,3]
[352824571,1739350242448,-292.560002,0.000115,3]
[352824573,1739350242500,-5404.78800001,0.000115,3]
[352824586,1739350242718,-404.39144206,0.000115,3]
[352824595,1739350242774,-495.82854723,0.000115,3]
[352824609,1739350242909,-1984.4493353,0.000115,3]
[352824610,1739350242936,-4544.92314447,0.000115,3]
[352824611,1739350242948,-11604.140884,0.000115,3]
[352824612,1739350243045,-262.34160807,0.000115,3]
[352824613,1739350243057,-19875.01903157,0.000115,3]
[352824614,1739350243069,-2908.63864675,0.000115,3]
[352824615,1739350243081,-1000.0,0.000115,3]
[352824626,1739350245811,-583.662996,0.000115,3]
[352824627,1739350245919,-2033.0,0.00011499,2]
[352824628,1739350245930,-15704.7498775,0.000115,3]
[352824629,1739350245974,-1891.68,0.000115,3]
[352824630,1739350246028,-96546.68647913,0.000115,3]
[352824644,1739351025272,3018.67,0.000161,90]
[352824899,1739351432020,-712.79842,9.265e-05,2]
[352824900,1739351432201,-155.37158,9.265e-05,2]
[352824901,1739351432214,-151.46,0.00010137,2]
[352824902,1739351432225,-170.88025094,0.00010923,2]
[352824903,1739351432234,-281.74755906,0.00010923,2]
[352824904,1739351432245,-35.67000879,0.00010923,2]
[352824905,1739351432256,-1020.71999121,0.00010923,2]
[352824906,1739351432273,-832.4738,0.00010923,2]
[352824907,1739351432298,-319.87720466,0.00010923,2]
[352824908,1739351432309,-347.643165,0.00010923,2]
[352824911,1739351432320,-1391.03906523,0.00010923,2]
[352824913,1739351432330,-328.79032694,0.00010923,2]
[352824915,1739351432340,-182.87,0.00010932,2]
[352824916,1739351432350,-165.31,0.00010946,2]
[352824917,1739351432360,-467.9919468,0.00010999,2]
[352824918,1739351432372,-146.66038514,0.00010999,2]
[352824919,1739351432382,-3040.57061069,0.00011,3]
[352825455,1739351437813,-68226.47508823,0.00011,3]
[352825484,1739351438076,-42698.41245754,0.00011,3]
[352825970,1739351442827,-978.56,0.00011,3]
[352826066,1739351443468,-1881.72135325,0.00011,3]
[352826068,1739351443480,-30775.79640985,0.00011,3]
[352826070,1739351443492,-5268.20000008,0.00011,3]
[352826343,1739351446121,-79373.0557447,0.00011,3]
[352827219,1739351471071,3374.7975,8.699e-05,2]
[352827220,1739351514945,15766.7925,8.836e-05,2]
[352827221,1739351556206,8929.4133,8.836e-05,2]
[352827222,1739351697396,872.69,8.842e-05,2]
[352827225,1739352346387,932.27,8.453e-05,2]
[352827226,1739352353964,178.0,0.00020541,120]
[352827292,1739352632166,-2910.19608478,9.999e-05,2]
[352827293,1739352632177,-150.0,9.999e-05,2]
[352827294,1739352632186,-500.0,9.999e-05,2]
[352827295,1739352632196,-500.0,9.999e-05,2]
[352827296,1739352632206,-643.83788847,9.999e-05,2]
[352827297,1739352632216,-154.35112624,0.0001,2]
[352827298,1739352632227,-62232.97715329,0.0001,2]
[352827299,1739352632249,-18928.81618522,0.0001,2]
[352827300,1739352632333,-360.4367498,0.0001,2]
[352827301,1739352632387,-12968.87106943,0.0001,2]
[352827302,1739352632399,-1273.3784205,0.0001,2]
[352827356,1739352638257,-1269.63965937,0.0001,2]
[352827569,1739352640531,-525.38000001,0.0001,2]
[352827571,1739352640543,-572.79000001,0.0001,2]
[352827834,1739352643135,-190131.65459023,0.0001,2]
[352828129,1739352646176,-46255.00340405,0.0001,2]
[352828153,1739352646402,-264.99,0.0001,2]
[352828554,1739353244276,8181.6425,8.836e-05,2]
[352828555,1739353376537,885.65,8.219e-05,2]
[352828556,1739353519384,-26600.0,0.00010781,7]
[352828577,1739353832280,-1026.73024974,9.8e-05,2]
[352828578,1739353832394,-1086.5926008,9.8e-05,2]
[352828579,1739353832505,-387.58814946,9.8e-05,2]
[352828580,1739353832515,-174.03,9.8e-05,2]
[352828581,1739353832525,-182.87,9.84e-05,2]
[352828582,1739353832535,-168.53,9.862e-05,2]
[352828583,1739353832545,-300.0,9.899e-05,2]
[352828584,1739353832555,-7247.18542584,9.9e-05,2]
[352828585,1739353832567,-701.50316037,9.9e-05,2]
[352828586,1739353832579,-51.31141379,9.9e-05,2]
[352828587,1739353832589,-1437.12877272,9.9e-05,2]
[352828588,1739353832599,-10.34931077,9.96e-05,2]
[352828589,1739353832613,-239.65068923,9.96e-05,2]